bitfinex/quotes_BTCUSD_20230113
["timestamp","ask_amount","ask_price","bid_price","bid_amount"]
[1673598447419,0.00130144,18842.0,18841.0,1.39586958]
[1673598448858,0.00149318,18842.0,18841.0,1.39586958]
[1673598449084,0.00149318,18842.0,18841.0,0.76570358]
[1673598449085,0.00130144,18842.0,18841.0,0.76570358]
[1673598449565,0.00130144,18842.0,18841.0,0.62490358]
[1673598450256,0.00149318,18842.0,18841.0,0.065]
[1673598450513,0.05928753,18842.0,18841.0,0.065]
[1673598450755,0.64841259,18842.0,18841.0,0.065]
[1673598451293,0.88645675,18842.0,18841.0,0.065]
[1673598451565,1.23670659,18842.0,18841.0,0.065]
[1673598452071,1.23689645,18842.0,18841.0,0.065]
[1673598452601,2.22734357,18842.0,18841.0,0.06488473]
[1673598452830,1.54428819,18842.0,18841.0,0.06488473]
[1673598453085,1.54428897,18842.0,18841.0,0.06488473]
[1673598454591,1.54409723,18842.0,18841.0,0.06488473]
[1673598455120,1.54409338,18842.0,18841.0,0.06488473]
[1673598455364,1.54395683,18842.0,18841.0,0.06488473]
[1673598457633,1.74825058,18842.0,18841.0,0.06488473]
[1673598457892,1.54395683,18842.0,18841.0,0.06488473]
[1673598458139,1.54414857,18842.0,18841.0,0.06488473]
[1673598458390,1.22607098,18842.0,18841.0,0.06488473]
[1673598458650,1.54414857,18842.0,18841.0,0.06488473]
[1673598461129,1.74846149,18842.0,18841.0,0.06488473]
[1673598462604,1.50998615,18842.0,18841.0,0.06488473]
[1673598462845,2.43099995,18842.0,18841.0,0.06488473]
[1673598463844,2.43086928,18842.0,18841.0,0.06488473]
[1673598464618,1.90755203,18842.0,18841.0,0.06488473]
[1673598465125,1.54386698,18842.0,18841.0,0.06488473]
[1673598466386,1.03425814,18842.0,18841.0,0.06488473]
[1673598466656,1.22610582,18842.0,18841.0,0.06488473]
[1673598466891,1.54418341,18842.0,18841.0,0.06488473]
[1673598467401,1.70355554,18842.0,18841.0,0.06488473]
[1673598467640,1.54415126,18842.0,18841.0,0.06488473]
[1673598468128,1.03421137,18842.0,18841.0,0.06488473]
[1673598469628,0.89461137,18842.0,18841.0,0.06488473]
[1673598470624,0.39750075,18842.0,18841.0,0.06488473]
[1673598470872,0.06733475,18842.0,18841.0,0.06488473]
[1673598471122,0.39750075,18842.0,18841.0,0.06488473]
[1673598472366,0.00129759,18842.0,18841.0,0.06488473]
[1673598472854,0.00129759,18842.0,18841.0,0.59268903]
[1673598473565,0.00122098,18842.0,18841.0,0.59268903]
[1673598475326,0.00130332,18842.0,18841.0,0.59268903]
[1673598476646,0.00149506,18842.0,18841.0,0.59268903]
[1673598476888,0.00130332,18842.0,18841.0,0.59268903]
[1673598480016,0.00149506,18842.0,18841.0,0.59268903]
[1673598480309,0.00130332,18842.0,18841.0,0.59268903]
[1673598481285,0.00052732,18842.0,18841.0,0.59268903]
[1673598487036,0.00052732,18842.0,18841.0,0.89268903]
[1673598487280,0.00052732,18842.0,18841.0,0.59268903]
[1673598489058,0.00052732,18842.0,18841.0,0.89268903]
[1673598490027,0.00052732,18842.0,18841.0,0.59268903]
[1673598491547,0.00052732,18842.0,18841.0,0.06488473]
[1673598491795,0.7864008,18842.0,18841.0,0.06488473]
[1673598492044,1.29596416,18842.0,18841.0,0.06488473]
[1673598492588,0.94572613,18842.0,18841.0,0.06488473]
[1673598493623,1.29607969,18842.0,18841.0,0.06488473]
[1673598494127,0.94572613,18842.0,18841.0,0.06488473]
[1673598495660,1.29680829,18842.0,18841.0,0.06488473]
[1673598495897,0.94649738,18842.0,18841.0,0.06488473]
[1673598496140,1.29686822,18842.0,18841.0,0.06488473]
[1673598496390,0.94649738,18842.0,18841.0,0.06488473]
[1673598496627,1.29686821,18842.0,18841.0,0.06488473]
[1673598497116,1.98283795,18842.0,18841.0,0.06488473]
[1673598497381,1.98283838,18842.0,18841.0,0.06488473]
[1673598501603,1.87318611,18842.0,18841.0,0.06488473]
[1673598502855,1.81458423,18842.0,18841.0,0.06488473]
[1673598503105,1.87572331,18842.0,18841.0,0.06488473]
[1673598504111,1.66729799,18842.0,18841.0,0.06488473]
[1673598505861,1.66710625,18842.0,18841.0,0.06488473]
[1673598506110,1.66710625,18842.0,18841.0,0.06480197]
[1673598506352,1.9851579,18842.0,18841.0,0.06480197]
[1673598507376,1.66729799,18842.0,18841.0,0.06480197]
[1673598507623,1.98515879,18842.0,18841.0,0.06480197]
[1673598507863,1.66729799,18842.0,18841.0,0.06480197]
[1673598508383,1.98517112,18842.0,18841.0,0.06480197]
[1673598508910,1.63480029,18842.0,18841.0,0.06480197]
[1673598510384,1.63386892,18842.0,18841.0,0.06480197]
[1673598510881,1.1082344,18842.0,18841.0,0.06480197]
[1673598511124,0.71066852,18842.0,18841.0,0.06480197]
[1673598511611,0.94906261,18842.0,18841.0,0.06480197]
[1673598512637,0.94906261,18842.0,18841.0,0.06375798]
[1673598512881,0.38050252,18842.0,18841.0,0.06375798]
[1673598513122,0.81066852,18842.0,18841.0,0.06375798]
[1673598513362,1.04905928,18842.0,18841.0,0.06375798]
[1673598514833,0.61870154,18842.0,18841.0,0.06375798]
[1673598515082,0.22135856,18842.0,18841.0,0.06375798]
[1673598515323,0.16021948,18842.0,18841.0,0.06375798]
[1673598515559,0.16021948,18842.0,18841.0,0.5882364]
[1673598515810,0.00130039,18842.0,18841.0,0.5882364]
[1673598516557,0.00130039,18842.0,18841.0,0.8882364]
[1673598516843,0.00130039,18842.0,18841.0,0.5882364]
[1673598518862,0.00130039,18842.0,18841.0,0.88814536]
[1673598519660,0.00130039,18842.0,18841.0,0.58814536]
[1673598520136,0.00130039,18842.0,18841.0,0.88814536]
[1673598521165,0.00130039,18842.0,18841.0,0.58814536]
[1673598521442,0.00130039,18842.0,18841.0,0.88814536]
[1673598521967,0.00130039,18842.0,18841.0,0.58814536]
[1673598523656,0.00149213,18842.0,18841.0,0.58814536]
[1673598524380,0.00130039,18842.0,18841.0,0.58814536]
[1673598529640,0.00130039,18842.0,18841.0,0.72894536]
[1673598530383,0.00130039,18842.0,18841.0,1.02894536]
[1673598530649,0.00130039,18842.0,18841.0,1.35911136]
[1673598531143,0.00130039,18842.0,18841.0,1.02994536]
[1673598531402,0.00130039,18842.0,18841.0,1.02894536]
[1673598534416,0.00149213,18842.0,18841.0,0.72894536]
[1673598534672,0.00130039,18842.0,18841.0,0.72894536]
[1673598535671,0.00130039,18842.0,18841.0,1.02894536]
[1673598535911,0.00130039,18842.0,18841.0,1.35911136]
[1673598536157,0.001302,18842.0,18841.0,1.35911136]
[1673598536649,0.001302,18842.0,18841.0,1.02894536]
[1673598538147,0.001302,18842.0,18841.0,0.72894536]
[1673598538644,0.001302,18842.0,18841.0,1.02894536]
[1673598538860,0.001302,18842.0,18841.0,1.35911136]
[1673598539605,0.001302,18842.0,18841.0,1.21831136]
[1673598539849,0.001302,18842.0,18841.0,0.88814536]
[1673598540110,0.001302,18842.0,18841.0,1.21831136]
[1673598541380,0.001302,18842.0,18841.0,0.88814536]
[1673598541629,0.001302,18842.0,18841.0,0.58814536]
[1673598541872,0.001302,18842.0,18841.0,0.88814536]
[1673598542153,0.001302,18842.0,18841.0,0.58814536]
[1673598542905,0.001302,18842.0,18841.0,0.06366694]
[1673598542906,0.06899047,18842.0,18841.0,0.06366694]
[1673598543159,0.06879873,18842.0,18841.0,0.06366694]
[1673598543422,0.001302,18842.0,18841.0,0.06366694]
[1673598544639,0.07733987,18842.0,18841.0,0.06366694]
[1673598547378,0.001302,18842.0,18841.0,0.9055547]
[1673598547632,0.00122877,18842.0,18841.0,1.2357207]
[1673598548127,0.00122877,18842.0,18841.0,0.9055547]
[1673598548372,0.00122877,18842.0,18841.0,1.19500836]
[1673598548607,0.00122877,18842.0,18841.0,2.37461318]
[1673598549343,0.00122877,18842.0,18841.0,2.37467887]
[1673598550090,0.00122877,18842.0,18841.0,1.59023558]
[1673598550604,0.00122877,18842.0,18841.0,1.89640472]
[1673598550868,0.00122877,18842.0,18841.0,2.53030226]
[1673598551117,0.00122877,18842.0,18841.0,2.25678014]
[1673598551371,0.00122877,18842.0,18841.0,1.89640472]
[1673598551618,0.00122877,18842.0,18841.0,2.53024938]
[1673598551878,0.00122877,18842.0,18841.0,1.89640472]
[1673598552620,0.00122877,18842.0,18841.0,2.16992652]
[1673598552880,0.00122877,18842.0,18841.0,2.16992895]
[1673598553122,0.00122877,18842.0,18841.0,1.89640472]
[1673598554590,0.00122877,18842.0,18841.0,2.16995943]
[1673598554860,0.01916864,18848.0,18841.0,2.688703]
[1673598555138,0.01916864,18848.0,18843.0,0.39584635]
[1673598555139,6e-05,18845.0,18843.0,0.39584635]
[1673598555388,6e-05,18845.0,18844.0,1.31442554]
[1673598555650,6e-05,18845.0,18844.0,1.38607156]
[1673598555891,6e-05,18845.0,18844.0,1.4862439]
[1673598556138,6e-05,18845.0,18844.0,0.78834264]
[1673598556384,0.00136104,18845.0,18844.0,0.78834264]
[1673598556879,0.00136104,18845.0,18844.0,1.45776719]
[1673598557139,0.00136104,18845.0,18844.0,1.051966]
[1673598557420,0.00130104,18845.0,18844.0,1.051966]
[1673598557663,0.00130104,18845.0,18844.0,1.21014264]
[1673598557912,0.00130104,18845.0,18844.0,1.34614264]
[1673598558159,0.00130104,18845.0,18844.0,1.99899503]
[1673598558401,0.00130104,18845.0,18844.0,1.34614264]
[1673598558914,0.00130104,18845.0,18844.0,1.34620832]
[1673598559186,0.00130104,18845.0,18844.0,1.71707618]
[1673598559679,0.00130104,18845.0,18844.0,1.70752542]
[1673598559929,0.00130104,18845.0,18844.0,1.34620832]
[1673598560925,0.00130104,18845.0,18844.0,1.39931284]
[1673598561177,0.00130104,18845.0,18844.0,1.2411362]
[1673598561671,0.00130104,18845.0,18844.0,1.60985491]
[1673598562393,0.00130104,18845.0,18844.0,1.46905491]
[1673598563655,0.00130104,18845.0,18844.0,1.76905491]
[1673598564640,0.00130104,18845.0,18844.0,1.6013533]
[1673598564890,0.00130104,18845.0,18844.0,1.41848711]
[1673598566125,0.00130104,18845.0,18844.0,1.71848711]
[1673598566860,0.00130104,18845.0,18844.0,1.66538259]
[1673598570028,0.00130104,18845.0,18844.0,1.04673168]
[1673598570530,0.00130104,18845.0,18844.0,1.57598408]
[1673598573293,0.00130104,18845.0,18844.0,1.04673168]
[1673598573576,0.00130104,18845.0,18844.0,1.18723168]
[1673598574051,0.00130104,18845.0,18844.0,1.34540832]
[1673598574303,0.00130104,18845.0,18844.0,1.18723168]
[1673598575843,0.00130104,18845.0,18844.0,1.34540832]
[1673598576071,0.00130104,18845.0,18844.0,1.18723168]
[1673598576800,0.00129742,18846.0,18845.0,0.1]
[1673598577054,0.00129742,18846.0,18845.0,0.870166]
[1673598577295,0.0011991,18846.0,18845.0,1.5196738]
[1673598578806,0.0011991,18846.0,18845.0,1.5826738]
[1673598582278,0.01584269,18847.0,18846.0,0.1]
[1673598582518,0.01584269,18847.0,18846.0,1.13195882]
[1673598582772,0.01584269,18847.0,18846.0,1.10179282]
[1673598583771,0.01784269,18847.0,18846.0,1.10179282]
[1673598584286,0.01784269,18847.0,18846.0,1.43195882]
[1673598584780,0.01784269,18847.0,18846.0,1.10179282]
[1673598585547,0.01784269,18847.0,18846.0,1.43195882]
[1673598585795,0.01284269,18847.0,18846.0,1.10185849]
[1673598586562,0.01284269,18847.0,18846.0,1.43202449]
[1673598586784,0.01284269,18847.0,18846.0,1.10185849]
[1673598588764,0.01284269,18847.0,18846.0,1.43202449]
[1673598589520,0.01284269,18847.0,18846.0,1.10185849]
[1673598589775,0.01284269,18847.0,18846.0,1.10179282]
[1673598590770,0.01284269,18847.0,18846.0,1.43195882]
[1673598591266,0.01284269,18847.0,18846.0,1.10179282]
[1673598592235,0.01284269,18847.0,18846.0,0.80179282]
[1673598593263,0.01284269,18847.0,18846.0,1.10185849]
[1673598593510,0.01284269,18847.0,18846.0,1.10179282]
[1673598594005,0.01284269,18847.0,18846.0,0.80179282]
[1673598594262,0.01284269,18847.0,18846.0,1.25996946]
[1673598595260,0.01284269,18847.0,18846.0,1.82764327]
[1673598595508,0.01284269,18847.0,18846.0,1.49747727]
[1673598596239,0.01084269,18847.0,18846.0,1.82207148]
[1673598596493,0.01084269,18847.0,18846.0,2.21523748]
[1673598596747,0.01084269,18847.0,18846.0,1.82207148]
[1673598597008,0.01214481,18847.0,18846.0,1.56047727]
[1673598597263,0.01214481,18847.0,18846.0,1.32296946]
[1673598597979,0.01214481,18847.0,18846.0,1.56047727]
[1673598599752,0.01214481,18847.0,18846.0,1.88504125]
[1673598600010,0.01214481,18847.0,18846.0,1.56047727]
[1673598600261,0.01214481,18847.0,18846.0,1.88567987]
[1673598601291,0.01214481,18847.0,18846.0,1.32296946]
[1673598601527,0.01073781,18847.0,18846.0,1.88569743]
[1673598601784,0.01073781,18847.0,18846.0,2.21586343]
[1673598602278,0.01073781,18847.0,18846.0,1.89064327]
[1673598602534,0.01073781,18847.0,18846.0,1.56047727]
[1673598603033,0.01073781,18847.0,18846.0,1.88571178]
[1673598603275,0.01073781,18847.0,18846.0,1.89064327]
[1673598603528,0.01073781,18847.0,18846.0,1.32296946]
[1673598603773,0.01073781,18847.0,18846.0,1.56047727]
[1673598604022,0.01073781,18847.0,18846.0,2.21587363]
[1673598606355,0.01073781,18847.0,18846.0,2.2159393]
[1673598606584,0.01073781,18847.0,18846.0,1.85424692]
[1673598606828,0.01073781,18847.0,18846.0,2.54875349]
[1673598607137,0.01073781,18847.0,18846.0,2.54876697]
[1673598607339,0.01073781,18847.0,18846.0,2.90213085]
[1673598607580,0.01073781,18847.0,18846.0,2.22413667]
[1673598607825,0.01073781,18847.0,18846.0,2.58545377]
[1673598608072,0.01073781,18847.0,18846.0,2.72545377]
[1673598608813,0.01073781,18847.0,18846.0,2.32960741]
[1673598609059,0.00303585,18847.0,18846.0,2.85584011]
[1673598610057,0.00303585,18847.0,18846.0,2.90894463]
[1673598610322,0.00303585,18847.0,18846.0,2.94320558]
[1673598610574,0.00303585,18847.0,18846.0,3.25968996]
[1673598611079,0.00303585,18847.0,18846.0,2.17173459]
[1673598611325,0.00303585,18847.0,18846.0,1.29031324]
[1673598611575,0.00303585,18847.0,18846.0,2.239824]
[1673598611822,0.00303585,18847.0,18846.0,1.5536962]
[1673598612073,0.00303585,18847.0,18846.0,2.81203903]
[1673598612319,0.00303585,18847.0,18846.0,2.35514388]
[1673598612568,0.00303585,18847.0,18846.0,3.33153636]
[1673598612819,0.00303585,18847.0,18846.0,3.02332378]
[1673598613571,0.00057254,18847.0,18846.0,3.32164088]
[1673598613820,0.26461182,18850.0,18847.0,0.1]
[1673598614089,0.02232369,18851.0,18849.0,0.39509443]
[1673598614339,0.02232369,18851.0,18850.0,2.39087199]
[1673598614595,0.02232369,18851.0,18850.0,3.07794715]
[1673598614829,0.02232369,18851.0,18850.0,2.7189151]
[1673598615084,0.02232369,18851.0,18850.0,1.87634127]
[1673598615330,0.02232369,18851.0,18850.0,2.23247766]
[1673598615580,0.02232369,18851.0,18850.0,2.61476628]
[1673598615821,0.02232369,18851.0,18850.0,2.970898]
[1673598616071,0.02232369,18851.0,18850.0,3.27931219]
[1673598616325,0.02232369,18851.0,18850.0,3.14042247]
[1673598616567,0.02232369,18851.0,18850.0,2.67519571]
[1673598616818,0.02232369,18851.0,18850.0,2.37792828]
[1673598617057,0.02232369,18851.0,18850.0,2.87206752]
[1673598617304,0.02362054,18851.0,18850.0,2.87206752]
[1673598617545,0.02362054,18851.0,18850.0,2.7138252]
[1673598617790,0.02362054,18851.0,18850.0,1.05749379]
[1673598618030,0.02362054,18851.0,18850.0,1.70405019]
[1673598618782,0.02362054,18851.0,18850.0,1.05749379]
[1673598619266,0.02362054,18851.0,18850.0,0.53126109]
[1673598619769,0.02362054,18851.0,18850.0,0.93126109]
[1673598622005,0.02362054,18851.0,18850.0,1.40766761]
[1673598622274,0.02462054,18851.0,18850.0,0.93126109]
[1673598622524,0.02462054,18851.0,18850.0,1.62891684]
[1673598623012,0.02462054,18851.0,18850.0,1.47129259]
[1673598623248,0.02462054,18851.0,18850.0,0.93126109]
[1673598623536,0.02462054,18851.0,18850.0,1.45971855]
[1673598623778,0.02462054,18851.0,18850.0,0.93126109]
[1673598625009,0.02462054,18851.0,18850.0,1.19651109]
[1673598626522,0.02462054,18851.0,18850.0,1.3542641]
[1673598626762,0.02462054,18851.0,18850.0,1.19651109]
[1673598629535,0.02462054,18851.0,18850.0,1.33721109]
[1673598631549,0.02462054,18851.0,18850.0,1.92087513]
[1673598631803,0.02462054,18851.0,18850.0,2.06396139]
[1673598632059,0.02462054,18851.0,18850.0,1.39031561]
[1673598633597,0.04485871,18851.0,18850.0,1.39031561]
[1673598634598,0.04485871,18851.0,18850.0,1.97929297]
[1673598634844,0.04485871,18851.0,18850.0,1.39031561]
[1673598635354,0.04485871,18851.0,18850.0,2.10753573]
[1673598635632,0.04485871,18851.0,18850.0,1.38446706]
[1673598636863,0.04485871,18851.0,18850.0,1.68446706]
[1673598637107,0.04485871,18851.0,18850.0,1.54386706]
[1673598637602,0.04486251,18851.0,18850.0,1.54386706]
[1673598637856,0.04486251,18851.0,18850.0,1.00316706]
[1673598638100,0.04486251,18851.0,18850.0,0.69846711]
[1673598638860,0.04505425,18851.0,18850.0,0.69846711]
[1673598639147,0.04486251,18851.0,18850.0,0.69846711]
[1673598639649,0.04486251,18851.0,18850.0,0.139]
[1673598639892,0.29858084,18851.0,18850.0,0.139]
[1673598640141,0.29858084,18851.0,18848.0,0.5407975]
[1673598640142,0.62743284,18851.0,18848.0,0.5407975]
[1673598640432,0.50888578,18851.0,18848.0,0.5407975]
[1673598640682,0.1394,18850.0,18848.0,0.5407975]
[1673598640933,0.04486251,18851.0,18849.0,0.52704339]
[1673598641167,0.04486251,18851.0,18850.0,0.329852]
[1673598641434,0.04286251,18851.0,18849.0,0.52704339]
[1673598641659,0.04486251,18851.0,18850.0,0.3]
[1673598641898,0.04286251,18851.0,18850.0,0.3]
[1673598642149,0.04486251,18851.0,18850.0,0.3]
[1673598642394,0.04505425,18851.0,18850.0,0.3]
[1673598643130,0.04486251,18851.0,18850.0,0.44]
[1673598645141,0.04486251,18851.0,18850.0,0.96370088]
[1673598645884,0.04486251,18851.0,18850.0,1.29355288]
[1673598646371,0.04486251,18851.0,18850.0,0.96376654]
[1673598647149,0.04486251,18851.0,18850.0,0.96370088]
[1673598653785,0.04486251,18851.0,18850.0,1.29355288]
[1673598654033,0.04486251,18851.0,18850.0,0.96370088]
[1673598654765,0.04486251,18851.0,18850.0,1.29355288]
[1673598655256,0.04486251,18851.0,18850.0,0.96370088]
[1673598656017,0.04505425,18851.0,18850.0,0.96370088]
[1673598656271,0.04386251,18851.0,18850.0,0.96370088]
[1673598656793,0.04386251,18851.0,18850.0,0.66370088]
[1673598657801,0.0438636,18851.0,18850.0,0.66370088]
[1673598658056,0.0438636,18851.0,18850.0,0.96370088]
[1673598660375,0.0438636,18851.0,18850.0,0.44]
[1673598660610,0.0438636,18851.0,18850.0,0.14]
[1673598660611,0.35107163,18851.0,18850.0,0.14]
[1673598660867,0.35107163,18851.0,18850.0,0.125]
[1673598661158,0.49186337,18851.0,18850.0,0.125]
[1673598661363,0.96151537,18851.0,18850.0,0.125]
[1673598661612,1.40622204,18851.0,18850.0,0.125]
[1673598661861,2.08624621,18851.0,18850.0,0.125]
[1673598662109,1.84837943,18851.0,18850.0,0.125]
[1673598662361,1.56342271,18851.0,18846.0,0.61650249]
[1673598662618,0.14,18847.0,18846.0,0.61650249]
[1673598662874,0.82156579,18847.0,18846.0,0.04887063]
[1673598663120,0.82156579,18847.0,18844.0,0.6256779]
[1673598663370,0.60889994,18846.0,18844.0,0.6256779]
[1673598663624,0.24,18846.0,18845.0,0.57673521]
[1673598663881,0.3801,18846.0,18845.0,0.57673521]
[1673598664657,0.3801,18846.0,18844.0,0.006224]
[1673598664929,0.1405,18845.0,18844.0,0.69951]
[1673598666222,0.1405,18845.0,18844.0,0.002034]
[1673598666475,0.1405,18845.0,18844.0,0.006034]
[1673598666476,0.47305338,18845.0,18844.0,0.006034]
[1673598666992,0.61375338,18845.0,18844.0,0.006034]
[1673598667244,0.94360538,18845.0,18844.0,0.006034]
[1673598667500,1.45237179,18845.0,18844.0,0.006034]
[1673598668058,1.16461015,18845.0,18844.0,0.006034]
[1673598668542,1.45012473,18845.0,18844.0,0.006034]
[1673598668827,1.29622462,18845.0,18844.0,0.006034]
[1673598669034,1.15101004,18845.0,18844.0,0.006034]
[1673598670556,0.1,18842.0,18840.0,0.00260809]
[1673598670827,0.1,18840.0,18839.0,0.02148644]
[1673598671079,0.1,18840.0,18838.0,0.00255923]
[1673598671080,0.99488595,18840.0,18838.0,0.00255923]
[1673598671327,0.31030494,18840.0,18838.0,0.00255923]
[1673598671575,0.31030494,18840.0,18838.0,0.54724908]
[1673598671828,0.1,18840.0,18838.0,0.54724908]
[1673598672078,0.1407,18839.0,18838.0,0.54724908]
[1673598672576,0.1407,18839.0,18838.0,0.62124908]
[1673598672829,0.1407,18839.0,18838.0,0.54724908]
[1673598673092,0.1517,18839.0,18838.0,0.07655923]
[1673598673611,0.1517,18839.0,18838.0,0.89239047]
[1673598673612,0.011,18839.0,18838.0,0.89239047]
[1673598673875,0.011,18839.0,18838.0,1.22224247]
[1673598674651,0.011,18839.0,18838.0,0.89239047]
[1673598675694,0.011,18839.0,18838.0,1.22224247]
[1673598676666,0.01119174,18839.0,18838.0,0.89239047]
[1673598676912,0.011,18839.0,18838.0,0.89239047]
[1673598677724,0.01119174,18839.0,18838.0,0.89239047]
[1673598678216,0.01230355,18839.0,18838.0,0.89239047]
[1673598679003,0.01230355,18839.0,18838.0,1.22224247]
[1673598681737,0.01249529,18839.0,18838.0,1.22224247]
[1673598681959,0.01230355,18839.0,18838.0,1.22224247]
[1673598683492,0.01249529,18839.0,18838.0,1.22224247]
[1673598683750,0.01230355,18839.0,18838.0,1.22224247]
[1673598684473,0.01249529,18839.0,18838.0,1.22224247]
[1673598684746,0.01230355,18839.0,18838.0,1.22224247]
[1673598686271,0.01230355,18839.0,18838.0,0.59239047]
[1673598686759,0.01249529,18839.0,18838.0,0.59239047]
[1673598687253,0.01230355,18839.0,18838.0,0.59239047]
[1673598687754,0.01249529,18839.0,18838.0,0.59239047]
[1673598688031,0.15290355,18839.0,18838.0,0.59239047]
[1673598689039,0.15309529,18839.0,18838.0,0.59239047]
[1673598690784,0.01249529,18839.0,18838.0,0.59239047]
[1673598691031,0.01230355,18839.0,18838.0,0.59239047]
[1673598691288,0.01230355,18839.0,18838.0,0.07655923]
[1673598694045,0.01230355,18839.0,18838.0,0.60363801]
[1673598694295,0.01230355,18839.0,18838.0,0.90363801]
[1673598694567,0.01230355,18839.0,18838.0,1.23349001]
[1673598694786,0.01230355,18839.0,18838.0,0.90363801]
[1673598695035,0.01221832,18839.0,18838.0,0.70641123]
[1673598695281,0.01221832,18839.0,18838.0,0.98741123]
[1673598696045,0.01221832,18839.0,18838.0,1.5316748]
[1673598696282,0.01221832,18839.0,18838.0,0.98741123]
[1673598697749,0.01221832,18839.0,18838.0,1.60071458]
[1673598698003,0.01221832,18839.0,18838.0,0.98741123]
[1673598698267,0.01221657,18839.0,18838.0,1.64792808]
[1673598699018,0.01221657,18839.0,18838.0,0.98741123]
[1673598699512,0.01221657,18839.0,18838.0,1.68203957]
[1673598699748,0.01221657,18839.0,18838.0,0.98741123]
[1673598700245,0.01221657,18839.0,18838.0,1.76359672]
[1673598700494,0.01221657,18839.0,18838.0,1.14516424]
[1673598700744,0.01221657,18839.0,18838.0,0.98741123]
[1673598700991,0.01221657,18839.0,18838.0,1.83291874]
[1673598701258,0.01221657,18839.0,18838.0,0.98741123]
[1673598702022,0.01221657,18839.0,18838.0,1.67341548]
[1673598702272,0.01221657,18839.0,18838.0,1.73095227]
[1673598702522,0.01221657,18839.0,18838.0,1.73095177]
[1673598703055,0.01221657,18839.0,18838.0,2.31132876]
[1673598703559,0.01221657,18839.0,18838.0,1.73095177]
[1673598704060,0.01221657,18839.0,18838.0,2.32476841]
[1673598704306,0.01221657,18839.0,18838.0,1.57319876]
[1673598704567,0.01221657,18839.0,18838.0,2.04752718]
[1673598704832,0.01221657,18839.0,18838.0,2.22374066]
[1673598705092,0.01221657,18839.0,18838.0,2.46151699]
[1673598705340,0.01221657,18839.0,18838.0,1.89022728]
[1673598705583,0.01221657,18839.0,18838.0,2.48276936]
[1673598706358,0.01221657,18839.0,18838.0,1.89022728]
[1673598706857,0.01221657,18839.0,18838.0,2.61672476]
[1673598707327,0.01221657,18839.0,18838.0,3.32151533]
[1673598708855,0.01221657,18839.0,18838.0,2.9264391]
[1673598709388,0.01221657,18839.0,18838.0,3.16434426]
[1673598709650,0.01221657,18839.0,18838.0,1.47788002]
[1673598709916,0.01240831,18839.0,18838.0,1.23997486]
[1673598710174,0.29478172,18839.0,18838.0,0.23518429]
[1673598710416,0.75604465,18839.0,18838.0,0.07655923]
[1673598710668,1.28206692,18839.0,18838.0,0.07655923]
[1673598710948,1.44105228,18839.0,18838.0,0.07655923]
[1673598711444,1.28206692,18839.0,18838.0,0.07655923]
[1673598711705,1.4410518,18839.0,18838.0,0.07655923]
[1673598711960,1.5803518,18839.0,18838.0,0.07655923]
[1673598712461,1.51538843,18839.0,18838.0,0.07655923]
[1673598712705,1.27726348,18839.0,18838.0,0.07655923]
[1673598712959,1.26634871,18839.0,18838.0,0.00255923]
[1673598713212,1.29934871,18839.0,18838.0,0.00655923]
[1673598713710,1.49889458,18839.0,18838.0,0.00655923]
[1673598714446,1.35959458,18839.0,18838.0,0.00655923]
[1673598714955,1.16004871,18839.0,18838.0,0.00655923]
[1673598715209,0.64652721,18839.0,18838.0,0.00655923]
[1673598718534,0.64652578,18839.0,18838.0,0.00655923]
[1673598718791,0.64671752,18839.0,18838.0,0.00655923]
[1673598723817,0.03430037,18839.0,18838.0,0.30655923]
[1673598724062,0.03430037,18839.0,18838.0,1.01394456]
[1673598724328,0.03430037,18839.0,18838.0,0.00655923]
[1673598724570,0.05004462,18839.0,18838.0,0.00655923]
[1673598725603,0.44763428,18839.0,18838.0,0.00655923]
[1673598725851,0.77748628,18839.0,18838.0,0.00655923]
[1673598726340,0.77767802,18839.0,18838.0,0.00655923]
[1673598729033,0.77748628,18839.0,18838.0,0.00655923]
[1673598729284,1.29084774,18839.0,18838.0,0.00655923]
[1673598729585,1.43164774,18839.0,18838.0,0.00655923]
[1673598729820,1.27266286,18839.0,18838.0,0.00655923]
[1673598730336,0.91828628,18839.0,18838.0,0.00655923]
[1673598731088,2.02199745,18839.0,18838.0,0.00644018]
[1673598731338,1.86301257,18839.0,18838.0,0.00644018]
[1673598732344,0.1,18838.0,18834.0,0.04843227]
[1673598732587,0.1397,18835.0,18834.0,0.04843227]
[1673598732852,0.54034868,18835.0,18834.0,0.04843227]
[1673598733107,0.00019174,18835.0,18833.0,0.68692795]
[1673598733362,0.21049668,18835.0,18833.0,0.68692795]
[1673598733605,0.00019174,18835.0,18833.0,0.68692795]
[1673598734399,0.00019174,18835.0,18834.0,0.61357794]
[1673598734645,0.01119174,18835.0,18834.0,0.064]
[1673598734919,0.01119174,18835.0,18833.0,0.00358135]
[1673598734920,0.6107965,18835.0,18833.0,0.00358135]
[1673598735181,0.98708079,18834.0,18833.0,0.06758135]
[1673598735436,1.14612084,18834.0,18833.0,0.00358135]
[1673598735945,0.63242099,18834.0,18833.0,0.00358135]
[1673598736215,0.75642099,18834.0,18833.0,0.00958135]
[1673598737263,0.75642099,18834.0,18833.0,0.00358135]
[1673598737264,0.63242099,18834.0,18833.0,0.00358135]
[1673598737537,0.75642099,18834.0,18833.0,0.00358135]
[1673598737796,0.63242099,18834.0,18833.0,0.00358135]
[1673598738060,0.73842099,18834.0,18833.0,0.00958135]
[1673598738839,0.73972454,18834.0,18833.0,0.00958135]
[1673598740628,0.40987254,18834.0,18833.0,0.00958135]
[1673598741635,0.40987254,18834.0,18833.0,0.68703595]
[1673598742634,0.40987254,18834.0,18833.0,0.00958135]
[1673598752139,0.40987254,18834.0,18833.0,0.00949743]
[1673598756587,0.10730355,18834.0,18833.0,0.65756836]
[1673598756835,0.10730355,18834.0,18833.0,0.95756836]
[1673598757082,0.10730355,18834.0,18833.0,0.65756836]
[1673598757334,0.10730355,18834.0,18833.0,0.95756836]
[1673598758918,0.10730355,18834.0,18833.0,1.28742036]
[1673598759179,0.10729952,18834.0,18833.0,0.98742036]
[1673598759464,0.10729952,18834.0,18833.0,0.65756836]
[1673598760485,0.10749126,18834.0,18833.0,0.65756836]
[1673598760750,0.10729952,18834.0,18833.0,0.65756836]
[1673598762008,0.10729952,18834.0,18833.0,0.95756836]
[1673598762273,0.10729952,18834.0,18833.0,0.65756836]
[1673598763300,0.10729952,18834.0,18833.0,0.95756836]
[1673598763585,0.10749126,18834.0,18833.0,0.65756836]
[1673598764039,0.10729952,18834.0,18833.0,0.95756836]
[1673598766012,0.10729952,18834.0,18833.0,0.65756836]
[1673598766250,0.10729952,18834.0,18833.0,0.95756836]
[1673598766780,0.10729952,18834.0,18833.0,0.65756836]
[1673598767051,0.10729952,18834.0,18833.0,0.95756836]
[1673598767378,0.10729952,18834.0,18833.0,0.65756836]
[1673598768328,0.10729952,18834.0,18833.0,0.95756836]
[1673598770572,0.10729952,18834.0,18833.0,1.28742036]
[1673598771076,0.10729952,18834.0,18833.0,0.95756836]
[1673598771319,0.10749126,18834.0,18833.0,0.95756836]
[1673598771568,0.10729952,18834.0,18833.0,0.95756836]